[Event "Betsys MČR v online bleskovém šachu 2021"]
[Site "Chess.com"]
[Date "2021.04.17"]
[Round "12"]
[White "mysacek1414"]
[Black "FBingoPlayer"]
[Result "0-1"]
[WhiteElo "1921"]
[BlackElo "2185"]
[TimeControl "180+1"]
[EndTime "11:00:54 PDT"]
[Termination "Uživatel FBingoPlayer zvítězil na čas"]

1. e4 {[%clk 0:03:00.9]} 1... e5 {[%clk 0:02:57.5]} 2. Nf3 {[%clk 0:03:00.3]}
2... Nc6 {[%clk 0:02:57.3]} 3. Nc3 {[%clk 0:03:00.8]} 3... Nf6 {[%clk 0:02:57]}
4. d4 {[%clk 0:03:00.8]} 4... exd4 {[%clk 0:02:57.9]} 5. Nxd4 {[%clk 0:03:01.1]}
5... Bb4 {[%clk 0:02:57]} 6. Nxc6 {[%clk 0:03:01.2]} 6... bxc6 {[%clk
0:02:56.3]} 7. Bd3 {[%clk 0:03:01.7]} 7... O-O {[%clk 0:02:48.4]} 8. O-O {[%clk
0:03:00.2]} 8... d6 {[%clk 0:02:46.7]} 9. h3 {[%clk 0:02:56.4]} 9... h6 {[%clk
0:02:46]} 10. Bd2 {[%clk 0:02:49.6]} 10... a5 {[%clk 0:02:44.9]} 11. Qf3 {[%clk
0:02:41.1]} 11... Qe7 {[%clk 0:02:38.9]} 12. Rfe1 {[%clk 0:02:39]} 12... Re8
{[%clk 0:02:26.7]} 13. Rad1 {[%clk 0:02:10.6]} 13... Nd7 {[%clk 0:02:26]} 14.
Qg3 {[%clk 0:02:06.1]} 14... Kh8 {[%clk 0:02:20.3]} 15. f4 {[%clk 0:02:03.6]}
15... Bb7 {[%clk 0:02:08.4]} 16. a3 {[%clk 0:01:55]} 16... Bc5+ {[%clk
0:02:08.3]} 17. Kh1 {[%clk 0:01:53]} 17... Rg8 {[%clk 0:02:00.7]} 18. Ne2 {[%clk
0:01:51]} 18... Rae8 {[%clk 0:01:56.9]} 19. Bc3 {[%clk 0:01:50.1]} 19... a4
{[%clk 0:01:50.8]} 20. Ng1 {[%clk 0:01:47.3]} 20... Bb6 {[%clk 0:01:25.4]} 21.
Nf3 {[%clk 0:01:46]} 21... Nc5 {[%clk 0:01:18.7]} 22. Nh4 {[%clk 0:01:35.2]}
22... Bc8 {[%clk 0:01:13.1]} 23. Nf3 {[%clk 0:00:32.8]} 23... Nxd3 {[%clk
0:01:09.6]} 24. cxd3 {[%clk 0:00:32]} 24... f6 {[%clk 0:01:06.1]} 25. Nh4 {[%clk
0:00:30.5]} 25... Qf7 {[%clk 0:01:02.5]} 26. Ng6+ {[%clk 0:00:19.6]} 26... Kh7
{[%clk 0:01:02.5]} 27. f5 {[%clk 0:00:19.1]} 27... d5 {[%clk 0:00:56.3]} 28. Qf3
{[%clk 0:00:15.3]} 28... Bc5 {[%clk 0:00:41]} 29. Qg4 {[%clk 0:00:14.3]} 29...
d4 {[%clk 0:00:38.1]} 30. Bd2 {[%clk 0:00:13.4]} 30... Bd6 {[%clk 0:00:38.2]}
31. Nf4 {[%clk 0:00:12.8]} 31... Ba6 {[%clk 0:00:33]} 32. Bc1 {[%clk 0:00:11.6]}
32... c5 {[%clk 0:00:30.4]} 33. Ne6 {[%clk 0:00:10.4]} 33... Rb8 {[%clk
0:00:28.1]} 34. Qh4 {[%clk 0:00:08.7]} 34... Rb3 {[%clk 0:00:22.9]} 0-1

[Event "Betsys MČR v online bleskovém šachu 2021"]
[Site "Chess.com"]
[Date "2021.04.17"]
[Round "12"]
[White "Smetanka674"]
[Black "BetsysBetting"]
[Result "0-1"]
[WhiteElo "1770"]
[BlackElo "1999"]
[TimeControl "180+1"]
[EndTime "11:00:54 PDT"]
[Termination "Uživatel BetsysBetting zvítězil matem"]

1. d4 {[%clk 0:03:00.9]} 1... Nf6 {[%clk 0:02:56.4]} 2. c4 {[%clk 0:03:00.4]}
2... g6 {[%clk 0:02:54.2]} 3. Nc3 {[%clk 0:03:00.3]} 3... Bg7 {[%clk 0:02:54.4]}
4. Nf3 {[%clk 0:03:00.3]} 4... d6 {[%clk 0:02:52.9]} 5. e4 {[%clk 0:03:00.5]}
5... O-O {[%clk 0:02:53.1]} 6. Be2 {[%clk 0:03:00.6]} 6... e5 {[%clk 0:02:51.6]}
7. O-O {[%clk 0:03:00]} 7... Nc6 {[%clk 0:02:51.6]} 8. d5 {[%clk 0:02:59.7]}
8... Ne7 {[%clk 0:02:52.2]} 9. b4 {[%clk 0:02:59.2]} 9... a5 {[%clk 0:02:50.3]}
10. b5 {[%clk 0:02:57.8]} 10... Nd7 {[%clk 0:02:48.8]} 11. Ba3 {[%clk
0:02:48.7]} 11... b6 {[%clk 0:02:48.4]} 12. Rc1 {[%clk 0:02:40.8]} 12... f5
{[%clk 0:02:23.1]} 13. Nd2 {[%clk 0:02:39.8]} 13... Nf6 {[%clk 0:02:20]} 14. f4
{[%clk 0:02:34.7]} 14... exf4 {[%clk 0:02:08.3]} 15. Rxf4 {[%clk 0:02:33.8]}
15... g5 {[%clk 0:01:39.5]} 16. Rf1 {[%clk 0:02:31]} 16... f4 {[%clk 0:01:36.4]}
17. Nf3 {[%clk 0:02:16.2]} 17... h6 {[%clk 0:01:34.8]} 18. Nd4 {[%clk
0:02:13.7]} 18... Ng6 {[%clk 0:01:24.8]} 19. Nc6 {[%clk 0:02:00.6]} 19... Qe8
{[%clk 0:01:24.7]} 20. Bd3 {[%clk 0:01:55.6]} 20... Ng4 {[%clk 0:01:21.3]} 21.
Qe2 {[%clk 0:01:47.5]} 21... N6e5 {[%clk 0:01:06.8]} 22. h3 {[%clk 0:01:43.7]}
22... Ne3 {[%clk 0:01:04.9]} 23. Rfe1 {[%clk 0:01:36.7]} 23... g4 {[%clk
0:00:58.2]} 24. hxg4 {[%clk 0:01:32.3]} 24... Bxg4 {[%clk 0:00:55]} 25. Qd2
{[%clk 0:01:28.5]} 25... N5xc4 {[%clk 0:00:51.7]} 26. Bxc4 {[%clk 0:01:12.4]}
26... Nxc4 {[%clk 0:00:51.5]} 27. Qd3 {[%clk 0:00:55.3]} 27... Nxa3 {[%clk
0:00:48.9]} 28. Na4 {[%clk 0:00:54.4]} 28... f3 {[%clk 0:00:44.8]} 29. Rf1
{[%clk 0:00:45.4]} 29... Qh5 {[%clk 0:00:30]} 30. Qxa3 {[%clk 0:00:36.9]} 30...
Rae8 {[%clk 0:00:18.1]} 31. Rc3 {[%clk 0:00:27.7]} 31... Bxc3 {[%clk 0:00:14.8]}
32. Qxc3 {[%clk 0:00:24.7]} 32... fxg2 {[%clk 0:00:15.2]} 33. Rxf8+ {[%clk
0:00:23.3]} 33... Rxf8 {[%clk 0:00:13.4]} 34. Ne7+ {[%clk 0:00:19.4]} 34... Kh7
{[%clk 0:00:13.3]} 35. Nf5 {[%clk 0:00:16.6]} 35... Qh1+ {[%clk 0:00:12.1]} 36.
Kf2 {[%clk 0:00:15.1]} 36... g1=Q# {[%clk 0:00:12]} 0-1

[Event "Betsys MČR v online bleskovém šachu 2021"]
[Site "Chess.com"]
[Date "2021.04.17"]
[Round "12"]
[White "JJ95"]
[Black "DrDANDog"]
[Result "1-0"]
[WhiteElo "2019"]
[BlackElo "1797"]
[TimeControl "180+1"]
[EndTime "11:00:56 PDT"]
[Termination "Uživatel JJ95 zvítězil po vzdání soupeře"]

1. e4 {[%clk 0:03:00.9]} 1... Nf6 {[%clk 0:03:00]} 2. e5 {[%clk 0:03:00.6]} 2...
Nd5 {[%clk 0:03:00.6]} 3. d4 {[%clk 0:03:00.9]} 3... d6 {[%clk 0:03:01.2]} 4.
Nf3 {[%clk 0:03:00]} 4... dxe5 {[%clk 0:03:01.1]} 5. dxe5 {[%clk 0:02:55.2]}
5... Bg4 {[%clk 0:03:00.1]} 6. Be2 {[%clk 0:02:54.5]} 6... e6 {[%clk 0:02:58]}
7. O-O {[%clk 0:02:54.4]} 7... Be7 {[%clk 0:02:57]} 8. h3 {[%clk 0:02:45.4]}
8... Bh5 {[%clk 0:02:56.9]} 9. c4 {[%clk 0:02:39.2]} 9... Nb4 {[%clk 0:02:48.9]}
10. Na3 {[%clk 0:02:08.9]} 10... O-O {[%clk 0:02:44.7]} 11. Bf4 {[%clk
0:02:05.8]} 11... N8c6 {[%clk 0:02:41.9]} 12. Nb5 {[%clk 0:01:59.3]} 12... a6
{[%clk 0:02:36.4]} 13. Nc3 {[%clk 0:01:58]} 13... Bc5 {[%clk 0:02:23.8]} 14. a3
{[%clk 0:01:56.1]} 14... Bxf3 {[%clk 0:02:14.4]} 15. Bxf3 {[%clk 0:01:44.7]}
15... Nd3 {[%clk 0:02:12.7]} 16. Ne4 {[%clk 0:01:06.5]} 16... Bxf2+ {[%clk
0:02:01.7]} 17. Nxf2 {[%clk 0:01:02.4]} 17... Nxf4 {[%clk 0:02:01.8]} 18. Re1
{[%clk 0:00:48.6]} 18... Nxe5 {[%clk 0:01:54.3]} 19. Rxe5 {[%clk 0:00:44.3]}
19... Qf6 {[%clk 0:01:49.7]} 20. Ng4 {[%clk 0:00:34]} 20... Qg6 {[%clk
0:01:44.1]} 21. Qd2 {[%clk 0:00:26.7]} 21... Nh5 {[%clk 0:01:34.3]} 22. Rg5
{[%clk 0:00:24.4]} 22... Rad8 {[%clk 0:01:25.3]} 23. Qe3 {[%clk 0:00:11.9]}
23... Qc2 {[%clk 0:01:19]} 24. Rxh5 {[%clk 0:00:06.8]} 24... g6 {[%clk
0:01:19.2]} 25. Rh4 {[%clk 0:00:03.9]} 25... Qd2 {[%clk 0:01:17]} 26. Nf6+
{[%clk 0:00:02.6]} 26... Kg7 {[%clk 0:01:15.3]} 27. Qxd2 {[%clk 0:00:02.2]}
27... Rxd2 {[%clk 0:01:14.6]} 28. Ne4 {[%clk 0:00:01.6]} 28... Rxb2 {[%clk
0:01:14.1]} 29. Nc5 {[%clk 0:00:01.4]} 29... b6 {[%clk 0:01:13.2]} 30. Nxa6
{[%clk 0:00:01.5]} 30... Ra8 {[%clk 0:01:12.8]} 31. Nxc7 {[%clk 0:00:01.9]}
31... Rc8 {[%clk 0:01:12.4]} 32. Nb5 {[%clk 0:00:02.5]} 32... Rxc4 {[%clk
0:01:12.3]} 33. Rxc4 {[%clk 0:00:03.2]} 33... Rxb5 {[%clk 0:01:12]} 34. Rac1
{[%clk 0:00:03.8]} 34... Rb3 {[%clk 0:01:11.4]} 35. R4c3 {[%clk 0:00:03.8]}
35... Rb2 {[%clk 0:01:11.2]} 36. Be4 {[%clk 0:00:03.1]} 36... f5 {[%clk
0:01:10.7]} 37. Bf3 {[%clk 0:00:04]} 37... Kf6 {[%clk 0:01:11]} 38. Rc6 {[%clk
0:00:04.1]} 38... Ke5 {[%clk 0:01:06.8]} 39. Re1+ {[%clk 0:00:04.2]} 39... Kf4
{[%clk 0:01:07.1]} 40. Rcxe6 {[%clk 0:00:04.4]} 40... Kg3 {[%clk 0:01:05.4]} 41.
Rc6 {[%clk 0:00:03.9]} 41... Kf4 {[%clk 0:01:05.6]} 42. Rc4+ {[%clk 0:00:04]}
42... Kg5 {[%clk 0:01:05.3]} 43. Rc7 {[%clk 0:00:04.9]} 43... h6 {[%clk
0:01:05.1]} 44. Rc6 {[%clk 0:00:05]} 44... b5 {[%clk 0:01:02.3]} 45. h4+ {[%clk
0:00:05.3]} 45... Kf4 {[%clk 0:01:02.2]} 46. Rxg6 {[%clk 0:00:05.6]} 46... Rb3
{[%clk 0:01:00.5]} 47. Rxh6 {[%clk 0:00:05.7]} 47... Rxa3 {[%clk 0:01:00.7]} 48.
Rb6 {[%clk 0:00:05.5]} 48... Rb3 {[%clk 0:01:00.8]} 49. Rd1 {[%clk 0:00:05.7]}
49... Kg3 {[%clk 0:01:00.1]} 50. Rg6+ {[%clk 0:00:05.2]} 50... Kxh4 {[%clk
0:01:00.3]} 51. Rd4+ {[%clk 0:00:04.8]} 1-0

[Event "Betsys MČR v online bleskovém šachu 2021"]
[Site "Chess.com"]
[Date "2021.04.17"]
[Round "12"]
[White "Asmodai5"]
[Black "viklan"]
[Result "0-1"]
[WhiteElo "1346"]
[BlackElo "1589"]
[TimeControl "180+1"]
[EndTime "11:00:56 PDT"]
[Termination "Uživatel viklan zvítězil na čas"]

1. e4 {[%clk 0:02:59.7]} 1... c5 {[%clk 0:02:58.6]} 2. Nf3 {[%clk 0:02:56.5]}
2... d6 {[%clk 0:02:54.9]} 3. d4 {[%clk 0:02:56]} 3... cxd4 {[%clk 0:02:54.8]}
4. Nxd4 {[%clk 0:02:54.2]} 4... Nf6 {[%clk 0:02:55.7]} 5. Nc3 {[%clk 0:02:53.5]}
5... a6 {[%clk 0:02:55.9]} 6. Bd3 {[%clk 0:02:47.5]} 6... Qb6 {[%clk 0:02:52.8]}
7. Be3 {[%clk 0:02:35.7]} 7... Ng4 {[%clk 0:02:27.6]} 8. Na4 {[%clk 0:02:21.8]}
8... Qa5+ {[%clk 0:02:05.1]} 9. Bd2 {[%clk 0:02:00.6]} 9... Qxa4 {[%clk
0:02:02.8]} 10. O-O {[%clk 0:01:59.9]} 10... Qd7 {[%clk 0:01:46.8]} 11. Qf3
{[%clk 0:01:48]} 11... Ne5 {[%clk 0:01:44.2]} 12. Qg3 {[%clk 0:01:41.2]} 12...
Nbc6 {[%clk 0:01:39.1]} 13. Nxc6 {[%clk 0:01:33.1]} 13... bxc6 {[%clk 0:01:37]}
14. Bc3 {[%clk 0:01:30.6]} 14... Nxd3 {[%clk 0:01:25.6]} 15. cxd3 {[%clk
0:01:29.8]} 15... Qg4 {[%clk 0:01:19.8]} 16. Qe3 {[%clk 0:01:09.6]} 16... e5
{[%clk 0:01:12.7]} 17. Qb6 {[%clk 0:01:03]} 17... Qd7 {[%clk 0:01:09.2]} 18.
Rac1 {[%clk 0:00:54.1]} 18... Qb7 {[%clk 0:01:04.9]} 19. Qe3 {[%clk 0:00:51.3]}
19... Be7 {[%clk 0:01:00.7]} 20. Qg3 {[%clk 0:00:46.3]} 20... O-O {[%clk
0:00:58]} 21. Bd2 {[%clk 0:00:45.7]} 21... Qd7 {[%clk 0:00:51.8]} 22. Bh6 {[%clk
0:00:40.7]} 22... Qg4 {[%clk 0:00:51.2]} 23. Qxg4 {[%clk 0:00:31]} 23... Bxg4
{[%clk 0:00:50]} 24. Be3 {[%clk 0:00:27.8]} 24... c5 {[%clk 0:00:48.6]} 25. b3
{[%clk 0:00:26.8]} 25... Be2 {[%clk 0:00:45.8]} 26. Rfe1 {[%clk 0:00:24.8]}
26... Bxd3 {[%clk 0:00:45.5]} 27. f3 {[%clk 0:00:23.3]} 27... Bb5 {[%clk
0:00:44.2]} 28. Red1 {[%clk 0:00:18.7]} 28... g6 {[%clk 0:00:43.5]} 29. Rd2
{[%clk 0:00:17.8]} 29... f5 {[%clk 0:00:42.8]} 30. h3 {[%clk 0:00:15.4]} 30...
fxe4 {[%clk 0:00:42.5]} 31. fxe4 {[%clk 0:00:15]} 31... Bc6 {[%clk 0:00:42.1]}
32. Rc4 {[%clk 0:00:11.4]} 32... Bb5 {[%clk 0:00:38.3]} 33. Rc1 {[%clk 0:00:11]}
33... Rf7 {[%clk 0:00:37.6]} 34. Kh2 {[%clk 0:00:08.8]} 34... Raf8 {[%clk
0:00:37]} 35. Bg1 {[%clk 0:00:05.1]} 35... Rf1 {[%clk 0:00:33.3]} 36. Rxf1
{[%clk 0:00:03.3]} 36... Rxf1 {[%clk 0:00:32.3]} 37. Be3 {[%clk 0:00:03]} 37...
Re1 {[%clk 0:00:28.1]} 0-1

[Event "Betsys MČR v online bleskovém šachu 2021"]
[Site "Chess.com"]
[Date "2021.04.17"]
[Round "12"]
[White "fera_v"]
[Black "Evca64"]
[Result "1/2-1/2"]
[WhiteElo "2230"]
[BlackElo "2083"]
[TimeControl "180+1"]
[EndTime "11:00:59 PDT"]
[Termination "Remíza opakováním pozice"]

1. e4 {[%clk 0:02:59]} 1... c6 {[%clk 0:02:59.2]} 2. d4 {[%clk 0:02:58.4]} 2...
d5 {[%clk 0:02:59.3]} 3. Nc3 {[%clk 0:02:59.1]} 3... dxe4 {[%clk 0:02:59.3]} 4.
Nxe4 {[%clk 0:03:00]} 4... Bf5 {[%clk 0:02:59.1]} 5. Ng3 {[%clk 0:03:00]} 5...
Bg6 {[%clk 0:02:59.2]} 6. Nh3 {[%clk 0:03:00.6]} 6... e6 {[%clk 0:02:51.6]} 7.
Nf4 {[%clk 0:03:00.3]} 7... Bd6 {[%clk 0:02:51]} 8. h4 {[%clk 0:03:00.2]} 8...
Qc7 {[%clk 0:02:42.8]} 9. Ngh5 {[%clk 0:02:53.8]} 9... Bxh5 {[%clk 0:02:35.9]}
10. Nxh5 {[%clk 0:02:53.1]} 10... g6 {[%clk 0:02:34.5]} 11. Qg4 {[%clk
0:02:32.4]} 11... f5 {[%clk 0:02:08.4]} 12. Qe2 {[%clk 0:02:18.3]} 12... gxh5
{[%clk 0:02:04.5]} 13. Bg5 {[%clk 0:02:09.8]} 13... Qf7 {[%clk 0:01:58.3]} 14.
O-O-O {[%clk 0:02:03.8]} 14... Ne7 {[%clk 0:01:51.8]} 15. Qf3 {[%clk 0:01:56.9]}
15... Nd7 {[%clk 0:01:45.3]} 16. Bc4 {[%clk 0:01:55.3]} 16... Nb6 {[%clk
0:01:38.1]} 17. Bb3 {[%clk 0:01:53.6]} 17... Kd7 {[%clk 0:01:19.2]} 18. Rhe1
{[%clk 0:01:52.4]} 18... Nbd5 {[%clk 0:00:53.4]} 19. c4 {[%clk 0:01:50.8]} 19...
h6 {[%clk 0:00:45.5]} 20. cxd5 {[%clk 0:01:46.8]} 20... Nxd5 {[%clk 0:00:41.9]}
21. Bxd5 {[%clk 0:01:42.5]} 21... exd5 {[%clk 0:00:39.5]} 22. Bf4 {[%clk
0:01:41.6]} 22... Rae8 {[%clk 0:00:21.3]} 23. Bxd6 {[%clk 0:01:40.9]} 23... Kxd6
{[%clk 0:00:21.5]} 24. Qf4+ {[%clk 0:01:41.3]} 24... Kd7 {[%clk 0:00:21.6]} 25.
Re5 {[%clk 0:01:41.4]} 25... Rxe5 {[%clk 0:00:20.2]} 26. dxe5 {[%clk 0:01:41.4]}
26... Qe6 {[%clk 0:00:20.4]} 27. Re1 {[%clk 0:01:36.5]} 27... Rg8 {[%clk
0:00:20.1]} 28. Qb4 {[%clk 0:01:20.8]} 28... b6 {[%clk 0:00:19]} 29. g3 {[%clk
0:01:18.8]} 29... Rg4 {[%clk 0:00:18.2]} 30. Qa3 {[%clk 0:01:12.1]} 30... a5
{[%clk 0:00:17.3]} 31. Qf8 {[%clk 0:01:03.7]} 31... Qe7 {[%clk 0:00:16.2]} 32.
Qxh6 {[%clk 0:00:59.7]} 32... Qe6 {[%clk 0:00:15.4]} 33. Qh7+ {[%clk 0:00:58.8]}
33... Kd8 {[%clk 0:00:14.9]} 34. Qxh5 {[%clk 0:00:57.1]} 34... Re4 {[%clk
0:00:14.8]} 35. Qh8+ {[%clk 0:00:54.3]} 35... Kd7 {[%clk 0:00:14.2]} 36. Qg7+
{[%clk 0:00:53.6]} 36... Kd8 {[%clk 0:00:13.8]} 37. Rxe4 {[%clk 0:00:51.1]}
37... dxe4 {[%clk 0:00:13.1]} 38. h5 {[%clk 0:00:46.3]} 38... Qc4+ {[%clk
0:00:12.8]} 39. Kd1 {[%clk 0:00:42.3]} 39... Qf1+ {[%clk 0:00:12]} 40. Kc2
{[%clk 0:00:40.2]} 40... Qxf2+ {[%clk 0:00:12.1]} 41. Kc3 {[%clk 0:00:38.5]}
41... Qe3+ {[%clk 0:00:12.1]} 42. Kc2 {[%clk 0:00:35.6]} 42... Qe2+ {[%clk
0:00:12.1]} 43. Kc1 {[%clk 0:00:34.1]} 43... Qe1+ {[%clk 0:00:12.1]} 44. Kc2
{[%clk 0:00:34.1]} 44... Qe2+ {[%clk 0:00:12.4]} 45. Kc1 {[%clk 0:00:34.3]}
45... Qe1+ {[%clk 0:00:12.8]} 46. Kc2 {[%clk 0:00:34.7]} 46... Qe2+ {[%clk
0:00:13.2]} 1/2-1/2

[Event "Betsys MČR v online bleskovém šachu 2021"]
[Site "Chess.com"]
[Date "2021.04.17"]
[Round "12"]
[White "Tynano"]
[Black "5265"]
[Result "1-0"]
[WhiteElo "1976"]
[BlackElo "1662"]
[TimeControl "180+1"]
[EndTime "11:00:59 PDT"]
[Termination "Uživatel Tynano zvítězil po vzdání soupeře"]

1. e4 {[%clk 0:03:00.9]} 1... e5 {[%clk 0:02:59.3]} 2. Nf3 {[%clk 0:03:00.7]}
2... Nc6 {[%clk 0:02:57.2]} 3. Bb5 {[%clk 0:03:01.3]} 3... f5 {[%clk 0:02:56.1]}
4. d4 {[%clk 0:03:00.1]} 4... fxe4 {[%clk 0:02:54.1]} 5. Nxe5 {[%clk 0:03:00.2]}
5... Nxe5 {[%clk 0:02:54.2]} 6. dxe5 {[%clk 0:03:00.5]} 6... c6 {[%clk
0:02:54.2]} 7. Nc3 {[%clk 0:03:00.8]} 7... cxb5 {[%clk 0:02:51.4]} 8. Nxe4
{[%clk 0:03:00.9]} 8... d5 {[%clk 0:02:43]} 9. exd6 {[%clk 0:03:00.3]} 9... Qa5+
{[%clk 0:02:35.6]} 10. c3 {[%clk 0:02:30.4]} 10... Bd7 {[%clk 0:02:32]} 11. Qh5+
{[%clk 0:02:24.7]} 11... Kd8 {[%clk 0:02:26.3]} 12. Bg5+ {[%clk 0:02:11.1]}
12... Kc8 {[%clk 0:02:23.8]} 13. b4 {[%clk 0:01:59.5]} 13... Qb6 {[%clk
0:02:19.6]} 14. Rd1 {[%clk 0:01:42.3]} 14... Qc6 {[%clk 0:01:44.3]} 15. Qf3
{[%clk 0:01:30.4]} 15... Nf6 {[%clk 0:01:12.6]} 16. Bxf6 {[%clk 0:01:13.6]}
16... gxf6 {[%clk 0:01:11.2]} 17. Qf4 {[%clk 0:01:01.5]} 17... f5 {[%clk
0:01:00.2]} 18. Nc5 {[%clk 0:00:57.7]} 18... b6 {[%clk 0:00:55.8]} 19. Nxd7
{[%clk 0:00:54.7]} 19... Qxc3+ {[%clk 0:00:51.3]} 20. Kf1 {[%clk 0:00:44]} 20...
Qc4+ {[%clk 0:00:31.9]} 21. Qxc4+ {[%clk 0:00:43.8]} 21... bxc4 {[%clk
0:00:31.8]} 22. Ne5 {[%clk 0:00:43.7]} 22... Rg8 {[%clk 0:00:20.8]} 23. d7+
{[%clk 0:00:41.9]} 23... Kd8 {[%clk 0:00:21.1]} 24. Nc6+ {[%clk 0:00:41.2]}
24... Kc7 {[%clk 0:00:20.1]} 25. d8=Q+ {[%clk 0:00:41.3]} 25... Rxd8 {[%clk
0:00:19.7]} 26. Nxd8 {[%clk 0:00:41.6]} 26... Bxb4 {[%clk 0:00:19.8]} 27. Ne6+
{[%clk 0:00:41.1]} 27... Kb7 {[%clk 0:00:19.3]} 28. g3 {[%clk 0:00:40]} 28...
Re8 {[%clk 0:00:18.8]} 29. Nd4 {[%clk 0:00:38.6]} 29... c3 {[%clk 0:00:18.7]}
30. Kg2 {[%clk 0:00:38.4]} 30... Rc8 {[%clk 0:00:17.2]} 31. Nxf5 {[%clk
0:00:38.4]} 31... c2 {[%clk 0:00:17.4]} 32. Rd7+ {[%clk 0:00:35.7]} 32... Kc6
{[%clk 0:00:16.7]} 33. Rxh7 {[%clk 0:00:27.6]} 33... Kb5 {[%clk 0:00:16.2]} 34.
Nd4+ {[%clk 0:00:26.9]} 34... Ka4 {[%clk 0:00:14.8]} 35. Nxc2 {[%clk 0:00:22.7]}
35... Rxc2 {[%clk 0:00:14.2]} 36. Rxa7+ {[%clk 0:00:22.1]} 36... Kb5 {[%clk
0:00:14.7]} 37. Rb1 {[%clk 0:00:20.8]} 37... Kc5 {[%clk 0:00:14.5]} 38. a3
{[%clk 0:00:20.4]} 38... Be1 {[%clk 0:00:12.5]} 39. Rc7+ {[%clk 0:00:20.8]}
39... Kd6 {[%clk 0:00:12.3]} 40. Rxc2 {[%clk 0:00:21.7]} 1-0

[Event "Betsys MČR v online bleskovém šachu 2021"]
[Site "Chess.com"]
[Date "2021.04.17"]
[Round "12"]
[White "PetrSoucek"]
[Black "RousekJan"]
[Result "1/2-1/2"]
[WhiteElo "2006"]
[BlackElo "1817"]
[TimeControl "180+1"]
[EndTime "11:00:59 PDT"]
[Termination "Remíza opakováním pozice"]

1. d4 {[%clk 0:03:00.9]} 1... d5 {[%clk 0:02:59.4]} 2. Bf4 {[%clk 0:02:56.7]}
2... Nc6 {[%clk 0:02:55.3]} 3. e3 {[%clk 0:02:54.8]} 3... Nf6 {[%clk 0:02:55.2]}
4. c4 {[%clk 0:02:54.1]} 4... e6 {[%clk 0:02:54.6]} 5. Nc3 {[%clk 0:02:53.5]}
5... Bd6 {[%clk 0:02:50.4]} 6. Bxd6 {[%clk 0:02:51.4]} 6... cxd6 {[%clk
0:02:50.2]} 7. cxd5 {[%clk 0:02:49.8]} 7... Nxd5 {[%clk 0:02:41.7]} 8. Nxd5
{[%clk 0:02:49.4]} 8... exd5 {[%clk 0:02:42.6]} 9. Nf3 {[%clk 0:02:48.8]} 9...
Be6 {[%clk 0:02:40.4]} 10. Bd3 {[%clk 0:02:48]} 10... h6 {[%clk 0:02:39.2]} 11.
O-O {[%clk 0:02:47.1]} 11... O-O {[%clk 0:02:38.6]} 12. h3 {[%clk 0:02:45]}
12... a6 {[%clk 0:02:32.7]} 13. Rc1 {[%clk 0:02:40.9]} 13... Rc8 {[%clk
0:02:31.9]} 14. Qb3 {[%clk 0:02:28.4]} 14... Na5 {[%clk 0:02:22.2]} 15. Qb4
{[%clk 0:02:27.8]} 15... Rb8 {[%clk 0:02:06.8]} 16. b3 {[%clk 0:02:18.7]} 16...
Nc6 {[%clk 0:02:04.9]} 17. Qa4 {[%clk 0:02:10.7]} 17... Qa5 {[%clk 0:02:04.3]}
18. Qxa5 {[%clk 0:01:53.5]} 18... Nxa5 {[%clk 0:02:05.2]} 19. Rc2 {[%clk
0:01:31.3]} 19... Rfc8 {[%clk 0:02:00.2]} 20. Rfc1 {[%clk 0:01:30.5]} 20... Rxc2
{[%clk 0:01:48.5]} 21. Rxc2 {[%clk 0:01:30.5]} 21... Nc6 {[%clk 0:01:47.2]} 22.
a3 {[%clk 0:01:21.1]} 22... Na5 {[%clk 0:01:40.5]} 23. Rc3 {[%clk 0:01:12.6]}
23... Rc8 {[%clk 0:01:37]} 24. Rxc8+ {[%clk 0:01:11.5]} 24... Bxc8 {[%clk
0:01:37.9]} 25. Bc2 {[%clk 0:01:11.1]} 25... Nc6 {[%clk 0:01:20.4]} 26. Kf1
{[%clk 0:01:10.2]} 26... b6 {[%clk 0:01:20.1]} 27. Ng1 {[%clk 0:01:09.3]} 27...
a5 {[%clk 0:01:19.7]} 28. Ne2 {[%clk 0:01:08.9]} 28... Ba6 {[%clk 0:01:19.3]}
29. Ke1 {[%clk 0:01:07.4]} 29... Bxe2 {[%clk 0:01:18.3]} 30. Kxe2 {[%clk
0:01:08.3]} 30... Kf8 {[%clk 0:01:17.2]} 31. Kd3 {[%clk 0:01:06.5]} 31... Ke7
{[%clk 0:01:16.4]} 32. Bd1 {[%clk 0:01:06.3]} 32... f6 {[%clk 0:01:12.4]} 33. f4
{[%clk 0:01:04.9]} 33... g5 {[%clk 0:01:10.9]} 34. f5 {[%clk 0:01:01.3]} 34...
Kd7 {[%clk 0:01:10.3]} 35. Bf3 {[%clk 0:01:01]} 35... Ne7 {[%clk 0:01:10.2]} 36.
g4 {[%clk 0:01:00.3]} 36... Kc6 {[%clk 0:01:09]} 37. Kc3 {[%clk 0:00:55.6]}
37... b5 {[%clk 0:01:03.2]} 38. Bg2 {[%clk 0:00:21.5]} 38... Kb6 {[%clk
0:00:59.3]} 39. Bf1 {[%clk 0:00:19.6]} 39... Kc6 {[%clk 0:00:58.1]} 40. Bd3
{[%clk 0:00:13.8]} 40... Kb6 {[%clk 0:00:57.7]} 41. Bf1 {[%clk 0:00:07.7]} 41...
Kc6 {[%clk 0:00:53.6]} 42. Bg2 {[%clk 0:00:07.8]} 42... Kb6 {[%clk 0:00:53.2]}
43. Bf3 {[%clk 0:00:04.6]} 43... Kc6 {[%clk 0:00:52.9]} 44. e4 {[%clk
0:00:04.8]} 44... dxe4 {[%clk 0:00:51.2]} 45. Bxe4+ {[%clk 0:00:05.7]} 45... d5
{[%clk 0:00:51.1]} 46. Bd3 {[%clk 0:00:04]} 46... Kb6 {[%clk 0:00:51.4]} 47. Bf1
{[%clk 0:00:03.4]} 47... Kc6 {[%clk 0:00:51.6]} 48. Bg2 {[%clk 0:00:04]} 48...
Kb6 {[%clk 0:00:51.3]} 49. Bf1 {[%clk 0:00:04.9]} 49... Kc6 {[%clk 0:00:51.6]}
50. Bg2 {[%clk 0:00:05.1]} 50... Kb6 {[%clk 0:00:52]} 51. Bf1 {[%clk 0:00:05.2]}
1/2-1/2